bitfinex/quotes_BTCUSD_20241004
["timestamp","ask_amount","ask_price","bid_price","bid_amount"]
[1728078602237,0.00135077,62439.0,62438.0,1.37701518]
[1728078603137,0.00135077,62439.0,62438.0,1.36301518]
[1728078604313,0.00135077,62439.0,62438.0,1.37701518]
[1728078604561,0.00135077,62439.0,62438.0,1.3319467]
[1728078604795,0.00135077,62439.0,62438.0,1.37697592]
[1728078605016,0.00135077,62439.0,62438.0,1.37497592]
[1728078605462,0.00135077,62439.0,62438.0,1.37497623]
[1728078606407,0.00135077,62439.0,62438.0,1.25255385]
[1728078606629,0.00135077,62439.0,62438.0,1.35205385]
[1728078607080,0.00135077,62439.0,62438.0,1.33805385]
[1728078607315,0.00135077,62439.0,62438.0,1.19368013]
[1728078607533,0.00135077,62439.0,62438.0,1.20768013]
[1728078607779,0.00135077,62439.0,62438.0,1.17968013]
[1728078608013,0.00135077,62439.0,62438.0,1.19368013]
[1728078608981,0.00135077,62439.0,62438.0,1.20768013]
[1728078609664,0.00135077,62439.0,62438.0,1.19368013]
[1728078610373,0.00135077,62439.0,62438.0,1.20768013]
[1728078610597,0.00135077,62439.0,62438.0,1.11166417]
[1728078610816,0.00135077,62439.0,62438.0,1.20768013]
[1728078611771,0.00135077,62439.0,62438.0,1.16265091]
[1728078612030,0.00135077,62439.0,62438.0,1.19038254]
[1728078612269,0.00135077,62439.0,62438.0,1.22504709]
[1728078612975,0.00135077,62439.0,62438.0,1.20771482]
[1728078615101,0.00135077,62439.0,62438.0,1.20971482]
[1728078615802,0.00135077,62439.0,62438.0,1.16265091]
[1728078616029,0.00135077,62439.0,62438.0,1.19234815]
[1728078616289,0.00135077,62439.0,62438.0,1.20765892]
[1728078616521,0.00135077,62439.0,62438.0,1.20965892]
[1728078619770,0.00135077,62439.0,62438.0,1.18195756]
[1728078620025,0.00135077,62439.0,62438.0,1.2096482]
[1728078622361,0.00135077,62439.0,62438.0,1.2076482]
[1728078626288,0.00135077,62439.0,62438.0,1.17995756]
[1728078629765,0.00135077,62439.0,62438.0,1.16265091]
[1728078629995,0.00135077,62439.0,62438.0,1.17985673]
[1728078630233,0.00135077,62439.0,62438.0,1.16265091]
[1728078630466,0.00135077,62439.0,62438.0,1.17986897]
[1728078635186,0.00135077,62439.0,62438.0,1.08385301]
[1728078635416,0.00135077,62439.0,62438.0,1.17986897]
[1728078640608,0.00135077,62439.0,62438.0,1.19699956]
[1728078640822,0.00135077,62439.0,62438.0,1.1797815]
[1728078644059,0.00135077,62439.0,62438.0,1.1817815]
[1728078650535,0.00135077,62439.0,62438.0,1.16465091]
[1728078650765,0.00135077,62439.0,62438.0,1.18174612]
[1728078656888,0.00135077,62439.0,62438.0,1.18175222]
[1728078657102,0.00135077,62439.0,62438.0,1.17975222]
[1728078657585,0.00135077,62439.0,62438.0,1.18175222]
[1728078657792,0.00135077,62439.0,62438.0,1.17975222]
[1728078658005,0.00135077,62439.0,62438.0,1.18175222]
[1728078659860,0.00135077,62439.0,62438.0,1.17975222]
[1728078660361,0.00135077,62439.0,62438.0,1.16265091]
[1728078660568,0.00135077,62439.0,62438.0,1.18174367]
[1728078662849,0.00135077,62439.0,62438.0,1.1817542]
[1728078664182,0.00135077,62439.0,62438.0,1.30203027]
[1728078669868,0.00135077,62439.0,62438.0,1.28492698]
[1728078670102,0.00135077,62439.0,62438.0,1.30201283]
[1728078672164,0.00135077,62439.0,62438.0,1.28492698]
[1728078674893,0.00135077,62439.0,62438.0,1.18542698]
[1728078675994,0.00135077,62439.0,62438.0,1.2025019]
[1728078676438,0.00135077,62439.0,62438.0,1.2005019]
[1728078676892,0.00135077,62439.0,62438.0,1.1725019]
[1728078677349,0.00135077,62439.0,62438.0,0.75868614]
[1728078677571,0.07775077,62439.0,62438.0,0.78254988]
[1728078678058,0.07775077,62439.0,62438.0,0.68653392]
[1728078678059,0.16895077,62439.0,62438.0,0.68653392]
[1728078678545,0.16895077,62439.0,62438.0,0.509301]
[1728078678757,0.34088458,62439.0,62438.0,0.495301]
[1728078678994,0.34088458,62439.0,62438.0,0.509301]
[1728078679439,0.28598458,62439.0,62438.0,0.295301]
[1728078679662,0.28598458,62439.0,62438.0,0.281301]
[1728078679888,0.28598458,62439.0,62438.0,0.309301]
[1728078680113,0.28598458,62439.0,62438.0,0.295301]
[1728078680338,0.28598458,62439.0,62438.0,0.281301]
[1728078680554,0.28598458,62439.0,62438.0,0.295301]
[1728078680776,0.28598458,62439.0,62438.0,0.304301]
[1728078681237,0.28598458,62439.0,62438.0,0.290301]
[1728078682167,0.24968458,62439.0,62438.0,0.254001]
[1728078683068,0.24968458,62439.0,62438.0,0.263001]
[1728078685181,0.3506993,62439.0,62438.0,0.263001]
[1728078688873,0.24968458,62439.0,62438.0,0.263001]
[1728078691024,0.24968458,62439.0,62438.0,0.243001]
[1728078695638,0.27479744,62439.0,62438.0,0.243001]
[1728078696118,0.37479744,62439.0,62438.0,0.243001]
[1728078696621,0.5186285,62439.0,62438.0,0.243001]
[1728078696861,0.5416285,62439.0,62438.0,0.225001]
[1728078697112,0.70333021,62439.0,62438.0,0.225001]
[1728078697348,0.70433021,62439.0,62438.0,0.225001]
[1728078697584,0.65551511,62439.0,62438.0,0.225001]
[1728078697806,4.49751511,62439.0,62438.0,0.225001]
[1728078698036,3.79551511,62439.0,62438.0,0.225001]
[1728078698281,3.84329381,62439.0,62438.0,0.225001]
[1728078698716,3.79551511,62439.0,62438.0,0.225001]
[1728078699196,3.81817326,62439.0,62438.0,0.225001]
[1728078699886,3.50117326,62439.0,62438.0,0.225001]
[1728078700341,3.42617326,62439.0,62438.0,0.225001]
[1728078700558,3.37817326,62439.0,62438.0,0.225001]
[1728078700779,3.26117326,62439.0,62438.0,0.225001]
[1728078701228,3.21340225,62439.0,62438.0,0.225001]
[1728078701446,3.22570225,62439.0,62438.0,0.225001]
[1728078701690,3.27347326,62439.0,62438.0,0.225001]
[1728078701934,3.27547326,62439.0,62438.0,0.225001]
[1728078702367,3.22770225,62439.0,62438.0,0.225001]
[1728078704606,3.22570225,62439.0,62438.0,0.225001]
[1728078704835,2.10870225,62439.0,62438.0,0.225001]
[1728078706462,2.13381824,62439.0,62438.0,0.225001]
[1728078706934,4.51681824,62439.0,62438.0,0.225001]
[1728078707159,4.81181824,62439.0,62438.0,0.225001]
[1728078707379,4.48581824,62439.0,62438.0,0.225001]
[1728078707589,4.35404318,62439.0,62438.0,0.225001]
[1728078708073,4.30781824,62439.0,62438.0,0.225001]
[1728078708295,4.3540646,62439.0,62438.0,0.225001]
[1728078708743,4.2830646,62439.0,62438.0,0.225001]
[1728078712449,4.25794861,62439.0,62438.0,0.225001]
[1728078714296,4.30571829,62439.0,62438.0,0.225001]
[1728078715484,3.96603881,62439.0,62438.0,0.225001]
[1728078716452,4.01380849,62439.0,62438.0,0.225001]
[1728078717677,3.96603881,62439.0,62438.0,0.225001]
[1728078718358,4.03769333,62439.0,62438.0,0.225001]
[1728078718577,4.04423881,62439.0,62438.0,0.225001]
[1728078718793,4.20742552,62439.0,62438.0,0.225001]
[1728078719222,4.30296489,62439.0,62438.0,0.225001]
[1728078720159,0.73696489,62439.0,62438.0,0.225001]
[1728078720410,5.69142552,62439.0,62438.0,0.225001]
[1728078720627,5.81084973,62439.0,62438.0,0.225001]
[1728078721322,0.68791928,62439.0,62438.0,0.225001]
[1728078721538,5.73791928,62439.0,62438.0,0.225001]
[1728078721760,0.68791928,62439.0,62438.0,0.225001]
[1728078721986,0.64142552,62439.0,62438.0,0.225001]
[1728078722204,5.7646792,62439.0,62438.0,0.225001]
[1728078722424,5.81038844,62439.0,62438.0,0.225001]
[1728078722917,5.64720173,62439.0,62438.0,0.225001]
[1728078723386,5.64620173,62439.0,62438.0,0.225001]
[1728078723599,5.64820173,62439.0,62438.0,0.226001]
[1728078723928,5.64820173,62439.0,62438.0,0.227001]
[1728078724151,5.81710173,62439.0,62438.0,0.227001]
[1728078724412,5.9607822,62439.0,62438.0,0.227001]
[1728078724857,6.12396891,62439.0,62438.0,0.227001]
[1728078725316,5.98028844,62439.0,62438.0,0.227001]
[1728078725788,5.95517052,62439.0,62438.0,0.227001]
[1728078726244,6.14192928,62439.0,62438.0,0.227001]
[1728078726988,5.97874257,62439.0,62438.0,0.227001]
[1728078728189,5.81710204,62439.0,62438.0,0.227001]
[1728078729123,5.74627457,62439.0,62438.0,0.227001]
[1728078732428,5.77139225,62439.0,62438.0,0.227001]
[1728078733547,5.67537629,62439.0,62438.0,0.227001]
[1728078734024,5.77139225,62439.0,62438.0,0.227001]
[1728078734486,5.69319225,62439.0,62438.0,0.227001]
[1728078734717,5.66807457,62439.0,62438.0,0.227001]
[1728078735643,4.95107457,62439.0,62438.0,0.227001]
[1728078736120,4.97619274,62439.0,62438.0,0.227001]
[1728078737611,5.69319274,62439.0,62438.0,0.227001]
[1728078737859,5.71831397,62439.0,62438.0,0.227001]
[1728078738558,5.08531397,62439.0,62438.0,0.227001]
[1728078739021,5.0601958,62439.0,62438.0,0.227001]
[1728078739455,4.8912958,62439.0,62438.0,0.227001]
[1728078741151,4.6242958,62439.0,62438.0,0.227001]
[1728078741383,4.1922958,62439.0,62438.0,0.227001]
[1728078743728,4.21741316,62439.0,62438.0,0.227001]
[1728078744178,4.38631316,62439.0,62438.0,0.227001]
[1728078747609,4.21741316,62439.0,62438.0,0.227001]
[1728078749271,4.1922958,62439.0,62438.0,0.227001]
[1728078751978,0.4742958,62439.0,62438.0,0.227001]
[1728078752203,0.42780204,62439.0,62438.0,0.227001]
[1728078752655,5.5242958,62439.0,62438.0,0.227001]
[1728078753104,5.53400003,62439.0,62438.0,0.227001]
[1728078753775,5.55911741,62439.0,62438.0,0.227001]
[1728078755247,5.59016233,62439.0,62438.0,0.227001]
[1728078756870,5.55911741,62439.0,62438.0,0.321901]
[1728078757096,2.73911741,62439.0,62438.0,0.321901]
[1728078757329,2.69262365,62439.0,62438.0,0.321901]
[1728078758778,2.66750627,62439.0,62438.0,0.321901]
[1728078759005,2.08349031,62439.0,62438.0,0.403101]
[1728078759682,2.08149031,62439.0,62438.0,0.403101]
[1728078759904,2.08349031,62439.0,62438.0,0.403101]
[1728078760133,2.08149031,62439.0,62438.0,0.403101]
[1728078760378,1.95949031,62439.0,62438.0,0.403101]
[1728078760816,1.95749031,62439.0,62438.0,0.402101]
[1728078761297,1.29049031,62439.0,62438.0,0.403101]
[1728078761535,1.29049031,62439.0,62438.0,0.402101]
[1728078761536,0.22049031,62439.0,62438.0,0.402101]
[1728078761773,0.22049031,62439.0,62438.0,0.403101]
[1728078762023,0.14418578,62444.0,62439.0,0.1761]
[1728078762266,0.001642,62446.0,62445.0,0.0752]
[1728078762513,0.02675665,62449.0,62445.0,0.0752]
[1728078762514,0.001644,62449.0,62446.0,0.255038]
[1728078762758,0.001642,62455.0,62453.0,0.25502]
[1728078762759,0.04800824,62454.0,62453.0,0.25502]
[1728078762998,0.4792,62463.0,62453.0,0.25502]
[1728078762999,0.33637607,62464.0,62456.0,0.0949]
[1728078763250,0.24035958,62464.0,62461.0,0.254998]
[1728078763495,0.16009,62465.0,62462.0,0.73659]
[1728078764906,0.160092,62464.0,62462.0,0.73659]
[1728078765387,0.160092,62464.0,62463.0,0.0812]
[1728078765635,0.160092,62464.0,62463.0,0.81778]
[1728078767197,0.1,62466.0,62464.0,0.160092]
[1728078767435,0.1,62466.0,62465.0,0.81777]
[1728078768123,0.1,62468.0,62466.0,0.0812]
[1728078768371,0.18517979,62470.0,62468.0,0.0812]
[1728078768586,0.02510179,62470.0,62468.0,0.0812]
[1728078768831,0.260079,62469.0,62468.0,0.0812]
[1728078769059,0.260079,62469.0,62468.0,0.56144]
[1728078770028,0.1,62469.0,62468.0,0.56144]
[1728078770263,0.260075,62471.0,62469.0,0.0812]
[1728078770482,0.260075,62471.0,62470.0,0.48023]
[1728078771897,0.260075,62471.0,62470.0,0.48323]
[1728078773275,0.260075,62471.0,62470.0,0.48523]
[1728078773508,0.260075,62471.0,62470.0,0.56133]
[1728078774649,0.260075,62471.0,62470.0,0.55633]
[1728078775318,0.260075,62471.0,62470.0,0.56733]
[1728078775774,0.260075,62471.0,62470.0,0.56333]
[1728078776263,0.260075,62471.0,62470.0,0.56933]
[1728078780038,0.261717,62471.0,62470.0,0.56933]
[1728078781433,0.261717,62471.0,62470.0,0.56333]
[1728078781672,0.261717,62471.0,62470.0,0.56233]
[1728078781896,0.261717,62471.0,62470.0,0.56933]
[1728078782128,0.2868168,62471.0,62470.0,0.56933]
[1728078783254,0.26343953,62471.0,62470.0,0.56933]
[1728078783855,0.26343953,62471.0,62470.0,0.56233]
[1728078784059,0.26343953,62471.0,62470.0,0.57233]
[1728078784272,0.00336453,62471.0,62470.0,0.56633]
[1728078784653,0.00336453,62471.0,62470.0,0.57533]
[1728078784859,0.26343853,62471.0,62470.0,0.57533]
[1728078785039,0.26343853,62471.0,62470.0,0.56633]
[1728078785241,0.26343853,62471.0,62470.0,0.57533]
[1728078785437,0.26343853,62471.0,62470.0,0.56533]
[1728078785994,0.10336453,62471.0,62470.0,0.56533]
[1728078786928,0.26343853,62471.0,62470.0,0.57533]
[1728078787154,0.26343853,62471.0,62470.0,0.56533]
[1728078787412,0.26343853,62471.0,62470.0,0.56633]
[1728078788326,0.26343853,62471.0,62470.0,0.57533]
[1728078790755,0.28853805,62471.0,62470.0,0.55633]
[1728078791226,0.28853805,62471.0,62470.0,0.57533]
[1728078791891,0.26343853,62471.0,62470.0,0.57533]
[1728078794395,0.26343853,62471.0,62470.0,0.55633]
[1728078794602,0.26343853,62471.0,62470.0,0.57533]
[1728078796699,0.26343853,62471.0,62470.0,0.56633]
[1728078796932,0.26343853,62471.0,62470.0,0.56533]
[1728078797147,0.26343853,62471.0,62470.0,0.57533]
[1728078807622,0.35865771,62471.0,62470.0,0.57533]
[1728078808059,0.38375764,62471.0,62470.0,0.57533]
[1728078808514,0.40756243,62471.0,62470.0,0.57533]
[1728078808713,0.28853846,62471.0,62470.0,0.57533]
[1728078809414,0.28853846,62471.0,62470.0,0.56533]
[1728078809415,0.26343853,62471.0,62470.0,0.56533]
[1728078809871,0.26343853,62471.0,62470.0,0.57533]
[1728078810095,0.26343853,62471.0,62470.0,0.55633]
[1728078810312,0.26343853,62471.0,62470.0,0.56533]
[1728078810570,0.26343853,62471.0,62470.0,0.57533]
[1728078811464,0.26343853,62471.0,62470.0,0.49023]
[1728078811972,0.26343853,62471.0,62470.0,0.49923]
[1728078816206,0.35393853,62471.0,62470.0,0.49923]
[1728078816437,0.500058,62471.0,62470.0,0.49923]
[1728078816676,0.35393853,62471.0,62470.0,0.49923]
[1728078816901,0.54117367,62471.0,62470.0,0.49923]
[1728078817365,0.37903927,62471.0,62470.0,0.49923]
[1728078817599,0.54222598,62471.0,62470.0,0.48923]
[1728078817827,5.42903927,62471.0,62470.0,0.48923]
[1728078818096,4.04392347,62471.0,62470.0,0.48323]
[1728078818349,3.40382273,62471.0,62470.0,0.48423]
[1728078818582,3.5658467,62471.0,62470.0,0.48423]
[1728078818811,3.5658467,62471.0,62470.0,0.48023]
[1728078819284,3.66549527,62471.0,62470.0,0.48023]
[1728078819510,2.90993853,62471.0,62470.0,0.48023]
[1728078821638,3.14240915,62471.0,62470.0,0.48023]
[1728078821894,3.09706516,62471.0,62470.0,0.48023]
[1728078822625,3.0719625,62471.0,62470.0,0.48023]
[1728078823086,3.0949625,62471.0,62470.0,0.48023]
[1728078823347,3.21595053,62471.0,62470.0,0.48023]
[1728078823590,3.05392656,62471.0,62470.0,0.48023]
[1728078824067,2.93293853,62471.0,62470.0,0.48023]
[1728078824324,2.95804532,62471.0,62470.0,0.48023]
[1728078825042,3.09687262,62471.0,62470.0,0.48023]
[1728078825525,3.2588174,62471.0,62470.0,0.48023]
[1728078825768,3.09687262,62471.0,62470.0,0.48023]
[1728078826017,3.13846215,62471.0,62470.0,0.48023]
[1728078827226,3.30164886,62471.0,62470.0,0.48023]
[1728078828126,3.30064886,62471.0,62470.0,0.48023]
[1728078828357,3.30164886,62471.0,62470.0,0.48123]
[1728078828833,3.30064886,62471.0,62470.0,0.48023]
[1728078829065,3.30164886,62471.0,62470.0,0.48123]
[1728078829286,3.30164886,62471.0,62470.0,0.48223]
[1728078829521,3.30164886,62471.0,62470.0,0.48123]
[1728078829975,3.30164886,62471.0,62470.0,0.48223]
[1728078830761,5.79664886,62471.0,62470.0,0.48223]
[1728078831183,5.79564886,62471.0,62470.0,0.48123]
[1728078831631,5.80364886,62471.0,62470.0,0.48223]
[1728078832057,5.89966482,62471.0,62470.0,0.48123]
[1728078832300,5.90766482,62471.0,62470.0,0.48223]
[1728078834388,6.06939652,62471.0,62470.0,0.48223]
[1728078836099,6.06938674,62471.0,62470.0,0.48223]
[1728078839185,6.07138674,62471.0,62470.0,0.48223]
[1728078841137,5.90966482,62471.0,62470.0,0.48223]
[1728078841384,0.85966482,62471.0,62470.0,0.48223]
[1728078841611,6.02604072,62471.0,62470.0,0.48223]
[1728078841827,6.07137734,62471.0,62470.0,0.48223]
[1728078842257,5.90966482,62471.0,62470.0,0.48223]
[1728078846362,5.81617414,62471.0,62470.0,0.48223]
[1728078853647,5.65298743,62471.0,62470.0,0.48223]
[1728078854126,4.45398743,62471.0,62470.0,0.48223]
[1728078854352,4.42198743,62471.0,62470.0,0.48223]
[1728078854812,4.03397147,62471.0,62470.0,0.48223]
[1728078855041,1.99348743,62471.0,62470.0,0.56413]
[1728078855267,1.94815081,62471.0,62470.0,0.56413]
[1728078855540,1.79815081,62471.0,62470.0,0.56413]
[1728078857340,1.79815081,62471.0,62470.0,0.48223]
[1728078857818,1.99074149,62471.0,62470.0,0.48223]
[1728078863455,1.53013485,62471.0,62470.0,0.56393]
[1728078863662,1.41915081,62471.0,62470.0,0.56393]
[1728078864115,1.39404727,62471.0,62470.0,0.56393]
[1728078865745,1.49314727,62471.0,62470.0,0.48223]
[1728078867275,1.51825168,62471.0,62470.0,0.48223]
[1728078868150,0.56625168,62471.0,62470.0,0.48223]
[1728078868404,0.54114727,62471.0,62470.0,0.48223]
[1728078868634,0.70433398,62471.0,62470.0,0.48223]
[1728078868866,5.84537984,62471.0,62470.0,0.48223]
[1728078874310,6.08152779,62471.0,62470.0,0.48223]
[1728078874538,5.84537984,62471.0,62470.0,0.48223]
[1728078875169,5.8704855,62471.0,62470.0,0.48223]
[1728078876765,5.84537984,62471.0,62470.0,0.48223]
[1728078879566,5.87048545,62471.0,62470.0,0.48223]
[1728078880908,5.84537984,62471.0,62470.0,0.48223]
[1728078881362,5.89316128,62471.0,62470.0,0.48223]
[1728078881583,5.89316128,62471.0,62470.0,0.322155]
[1728078881799,5.89316128,62471.0,62470.0,0.29014]
[1728078882011,5.84782466,62471.0,62470.0,0.002]
[1728078884167,5.87293139,62471.0,62470.0,0.002]
[1728078886003,5.93713239,62471.0,62470.0,0.002]
[1728078889423,0.002,62462.0,62461.0,0.00082]
[1728078889638,5.43111296,62462.0,62461.0,0.00082]
[1728078889847,5.22211296,62462.0,62461.0,0.00082]
[1728078890066,5.26536039,62462.0,62461.0,0.00082]
[1728078890307,5.2904678,62462.0,62461.0,0.00082]
[1728078891398,5.45365451,62462.0,62461.0,0.00082]
[1728078892091,5.49840294,62462.0,62461.0,0.00082]
[1728078892531,5.50240294,62462.0,62461.0,0.00082]
[1728078892747,5.49840294,62462.0,62461.0,0.00082]
[1728078893264,5.51040294,62462.0,62461.0,0.00182]
[1728078893718,5.50640294,62462.0,62461.0,0.00182]
[1728078893966,5.51440294,62462.0,62461.0,0.00282]
[1728078897988,5.48929553,62462.0,62461.0,0.00282]
[1728078898414,0.64829553,62462.0,62461.0,0.00282]
[1728078898615,5.6535471,62462.0,62461.0,0.00282]
[1728078898840,5.69829553,62462.0,62461.0,0.00282]
[1728078900788,5.72340385,62462.0,62461.0,0.00282]
[1728078902128,5.69829553,62462.0,62461.0,0.00282]
[1728078903093,5.74400477,62462.0,62461.0,0.00282]
[1728078904023,5.76911339,62462.0,62461.0,0.00282]
[1728078905899,5.81689483,62462.0,62461.0,0.00282]
[1728078906138,5.81489483,62462.0,62461.0,0.00282]
[1728078907521,5.81689483,62462.0,62461.0,0.00282]
[1728078907758,5.81489483,62462.0,62461.0,0.00282]
[1728078908225,5.78978621,62462.0,62461.0,0.00282]
[1728078908462,5.79178621,62462.0,62461.0,0.00282]
[1728078911528,5.81689548,62462.0,62461.0,0.00282]
[1728078914623,5.79178621,62462.0,62461.0,0.00282]
[1728078918838,5.81689589,62462.0,62461.0,0.00282]
[1728078919103,5.88678621,62462.0,62461.0,0.00282]
[1728078919334,5.88678621,62462.0,62461.0,1e-06]
[1728078919562,6.12288658,62462.0,62461.0,1e-06]
[1728078922334,6.12288658,62462.0,62450.0,0.0785]
[1728078922335,0.262125,62451.0,62450.0,0.0785]
[1728078922554,4.9113232,62451.0,62450.0,0.0785]
[1728078922763,4.97410846,62451.0,62450.0,0.0785]
[1728078924362,4.97510846,62451.0,62450.0,0.0785]
[1728078925007,4.81320493,62451.0,62450.0,0.0785]
[1728078926572,4.83831641,62451.0,62450.0,0.0785]
[1728078929063,4.81320493,62451.0,62450.0,0.0785]
[1728078930681,4.81320493,62451.0,62450.0,0.079321]
[1728078932346,4.83831669,62451.0,62450.0,0.079321]
[1728078933664,4.81320493,62451.0,62450.0,0.079321]
[1728078934615,4.81320493,62451.0,62450.0,0.000821]
[1728078935305,4.85891417,62451.0,62450.0,0.000821]
[1728078935890,4.95621417,62451.0,62450.0,0.000821]
[1728078936224,4.96121417,62451.0,62450.0,0.000821]
[1728078936671,4.95621417,62451.0,62450.0,0.000821]
[1728078936895,4.99132783,62451.0,62450.0,0.000821]
[1728078937118,4.99732783,62451.0,62450.0,0.001821]
[1728078937360,4.99132783,62451.0,62450.0,0.000821]
[1728078937820,5.80832783,62451.0,62450.0,0.001821]
[1728078942227,5.77221417,62451.0,62450.0,0.001821]
[1728078942514,5.78321417,62451.0,62450.0,0.001821]
[1728078942939,5.77021417,62451.0,62450.0,0.000821]
[1728078943388,5.78221417,62451.0,62450.0,0.000821]
[1728078943995,5.77021417,62451.0,62450.0,0.000821]
[1728078944192,5.78421417,62451.0,62450.0,0.000821]
[1728078944392,5.77021417,62451.0,62450.0,0.000821]
[1728078944654,5.75921417,62451.0,62450.0,0.000821]
[1728078944804,5.77321417,62451.0,62450.0,0.000821]
[1728078945043,5.78721417,62451.0,62450.0,0.000821]
[1728078945264,5.81232799,62451.0,62450.0,0.000821]
[1728078945484,5.79832799,62451.0,62450.0,0.000821]
[1728078945710,5.81232799,62451.0,62450.0,0.000821]
[1728078948395,0.76232799,62451.0,62450.0,0.000821]
[1728078948653,5.76757956,62451.0,62450.0,0.000821]
[1728078948898,5.81232799,62451.0,62450.0,0.000821]
[1728078949111,5.78721417,62451.0,62450.0,0.000821]
[1728078950457,5.81233143,62451.0,62450.0,0.000821]
[1728078951541,5.69004703,62451.0,62450.0,0.000821]
[1728078952365,5.59274703,62451.0,62450.0,0.000821]
[1728078952540,5.61786076,62451.0,62450.0,0.000821]
[1728078955071,5.61765787,62451.0,62450.0,0.000821]
[1728078959004,5.59254414,62451.0,62450.0,0.000821]
[1728078961361,5.75573085,62451.0,62450.0,0.000821]
[1728078962501,5.78084454,62451.0,62450.0,0.000821]
[1728078963604,5.61765783,62451.0,62450.0,0.000821]
[1728078966607,5.5484769,62451.0,62450.0,0.000821]
[1728078969321,5.78435211,62451.0,62450.0,0.000821]
[1728078969757,5.80946582,62451.0,62450.0,0.000821]
[1728078971122,5.8096229,62451.0,62450.0,0.000821]
[1728078971784,5.97280961,62451.0,62450.0,0.000821]
[1728078973871,5.8096229,62451.0,62450.0,0.000821]
[1728078974415,5.57359061,62451.0,62450.0,0.000821]
[1728078974658,5.74249061,62451.0,62450.0,0.000821]
[1728078974876,5.57359061,62451.0,62450.0,0.000821]
[1728078975806,5.47757465,62451.0,62450.0,0.000821]
[1728078976046,5.57359061,62451.0,62450.0,0.000821]
[1728078976273,5.71166361,62451.0,62450.0,0.000821]
[1728078976714,5.68366361,62451.0,62450.0,0.000821]
[1728078976941,5.69766361,62451.0,62450.0,0.000821]
[1728078977226,5.71166361,62451.0,62450.0,0.000821]
[1728078977421,5.80816361,62451.0,62450.0,0.000821]
[1728078978349,0.00179711,62445.0,62444.0,0.0761]
[1728078978582,5.43095307,62445.0,62444.0,0.0761]
[1728078978810,5.49371525,62445.0,62444.0,0.0761]
[1728078979208,5.51883025,62445.0,62444.0,0.0761]
[1728078979586,5.52883025,62445.0,62444.0,0.0761]
[1728078979820,5.69201696,62445.0,62444.0,0.0761]
[1728078980026,5.70101696,62445.0,62444.0,0.0761]
[1728078983398,5.67590196,62445.0,62444.0,0.0761]
[1728078988000,5.70101696,62445.0,62444.0,0.0761]
[1728078989992,5.70101696,62445.0,62444.0,0.076921]
[1728078991640,5.70101696,62445.0,62444.0,0.000821]
[1728078991641,5.63603025,62445.0,62444.0,0.000821]
[1728078992760,5.53783025,62445.0,62444.0,0.000821]
[1728078992979,5.63132146,62445.0,62444.0,0.000821]
[1728078994473,5.58561222,62445.0,62444.0,0.000821]
[1728078994675,5.74879893,62445.0,62444.0,0.000821]
[1728078995254,5.73879893,62445.0,62444.0,0.000821]
[1728078995458,5.72979893,62445.0,62444.0,0.000821]
[1728078995666,5.75479893,62445.0,62444.0,0.000821]
[1728078996011,5.74179893,62445.0,62444.0,0.000821]
[1728078996229,5.74279893,62445.0,62444.0,0.000821]
[1728078997014,5.75479893,62445.0,62444.0,0.000821]
[1728078998360,5.74279893,62445.0,62444.0,0.000821]
[1728078998589,5.74379893,62445.0,62444.0,0.000821]
[1728078998814,5.75779893,62445.0,62444.0,0.000821]
[1728078999065,5.74379893,62445.0,62444.0,0.000821]
[1728078999294,5.75779893,62445.0,62444.0,0.000821]
[1728078999517,5.74379893,62445.0,62444.0,0.000821]
[1728078999761,5.72979893,62445.0,62444.0,0.000821]
[1728078999978,5.74379893,62445.0,62444.0,0.000821]
[1728079000218,5.75679893,62445.0,62444.0,0.000821]
[1728079004764,5.92569893,62445.0,62444.0,0.000821]
[1728079004978,5.85499893,62445.0,62444.0,0.000821]
[1728079005213,5.87559317,62445.0,62444.0,0.000821]
[1728079005838,5.52071525,62445.0,62444.0,0.000821]
[1728079008272,5.42469929,62445.0,62444.0,0.078121]
[1728079008749,5.52071525,62445.0,62444.0,0.078121]
[1728079009896,5.54583025,62445.0,62444.0,0.078121]
[1728079011727,5.52071525,62445.0,62444.0,0.078121]
[1728079014064,0.47071525,62445.0,62444.0,0.078121]
[1728079014287,5.47596682,62445.0,62444.0,0.078121]
[1728079014527,5.52071525,62445.0,62444.0,0.078121]
[1728079014782,5.54583049,62445.0,62444.0,0.078121]
[1728079017145,5.54583049,62445.0,62444.0,0.000821]
[1728079018844,5.7090172,62445.0,62444.0,0.000821]
[1728079019085,5.54583049,62445.0,62444.0,0.000821]
[1728079022350,5.52071525,62445.0,62444.0,0.000821]
[1728079025222,5.61531525,62445.0,62444.0,0.000821]
[1728079027077,5.64043139,62445.0,62444.0,0.000821]
[1728079027534,5.61343139,62445.0,62444.0,0.000821]
[1728079027821,5.62743139,62445.0,62444.0,0.000821]
[1728079028062,5.8046181,62445.0,62444.0,0.000821]
[1728079031269,5.7100181,62445.0,62444.0,0.000821]
[1728079034352,5.68490196,62445.0,62444.0,0.000821]
[1728079037277,5.71001808,62445.0,62444.0,0.000821]
[1728079038684,5.68490196,62445.0,62444.0,0.000821]
[1728079041641,5.71001811,62445.0,62444.0,0.000821]
[1728079043084,5.68490196,62445.0,62444.0,0.000821]
[1728079046181,5.71001813,62445.0,62444.0,0.000821]
[1728079049464,5.54683142,62445.0,62444.0,0.000821]
[1728079057910,5.64423142,62445.0,62444.0,0.000821]
[1728079073323,5.54683142,62445.0,62444.0,0.000821]
[1728079080810,5.63783142,62445.0,62444.0,0.000821]
[1728079081008,0.00179711,62439.0,62438.0,0.0018151]
[1728079081182,5.25795311,62439.0,62438.0,0.0018151]
[1728079081367,5.3207127,62439.0,62438.0,0.000821]
[1728079081596,5.34583164,62439.0,62438.0,0.000821]
[1728079082279,4.62983164,62439.0,62438.0,0.000821]
[1728079082527,4.41383164,62439.0,62438.0,0.000821]
[1728079082764,4.11783164,62439.0,62438.0,0.000821]
[1728079083001,4.09783164,62439.0,62438.0,0.000821]
[1728079083229,4.10783164,62439.0,62438.0,0.000821]
[1728079088177,4.1329486,62439.0,62438.0,0.000821]
[1728079088399,0.39183164,62439.0,62438.0,0.000821]
[1728079088631,5.39708321,62439.0,62438.0,0.000821]
[1728079088862,5.44183164,62439.0,62438.0,0.000821]
[1728079089528,5.57854133,62439.0,62438.0,0.000821]
[1728079090259,5.56954133,62439.0,62438.0,0.000821]
[1728079090492,5.57054133,62439.0,62438.0,0.000821]
[1728079090724,5.58254133,62439.0,62438.0,0.000821]